Workbook

Sheet Portfolio Frontier (二資產)
I1: E(r_i) = | J1: 0.1 | K1: 0.06 | L1: (derived according to the annualized adjusted (total) returns in the historical data)
B2: coef. 1 | C2: coef.2 | E2: Result | I2: sigma(r_i) = | J2: 0.2 | K2: 0.1
A3: Objectinve Function | E3: =(B7*B7*B9+C7*C7*C10+2*B7*C7*C9)^0.5 -> 0.2384887314 | I3: correlation = | J3: 1 | K3: 0.5
A4: C1 | B4: 0.1 | C4: 0.06 | E4: =SUMPRODUCT(B4:D4,$B$7:$D$7) -> 0.110001 | F4: = | G4: 0.11 | K4: 1
A5: C2 | B5: 1 | C5: 1 | E5: =SUMPRODUCT(B5:D5,$B$7:$D$7) -> 1 | F5: = | G5: 1
A7: Solution Value (weights) | B7: 1.250025 | C7: -0.250025 | F7: ※ 使用 "資料" => "規劃求解"按鈕解此受限制portfolio standard deviation極小化問題
F8: ※ 如何叫出"規劃求解"按鈕："檔案" => "選項" => "增益集" => "Excel增益集" => 執行 => 選擇 "規劃求解增益集"
A9: variance-covariance | B9: =0.2^2 -> 0.04 | C9: =0.5*0.2*0.1 -> 0.01
B10: =C9 -> 0.01 | C10: =0.1^2 -> 0.01
B14: E(r_p) | C14: sigma(r_p)
B15: 0 | C15: 0.2783882181
B16: 0.01 | C16: 0.2384887314
B17: 0.02 | C17: 0.2
B18: 0.03 | C18: 0.1639359631
B19: 0.04 | C19: 0.1322875656
B20: 0.05 | C20: 0.1089724736
B21: 0.06 | C21: 0.1
B22: 0.07 | C22: 0.1089724736
B23: 0.08 | C23: 0.1322875656
B24: 0.09 | C24: 0.1639359631
B25: 0.1 | C25: 0.2
B26: 0.11 | C26: 0.2384808693
B27: 0.12 | C27: 0.278384177
B28: 0.13 | C28: 0.3191786334
B29: 0.14 | C29: 0.3605551275
B30: 0.15 | C30: 0.4023369235
B31: 0.16 | C31: 0.4444097209
B32: 0.17 | C32: 0.4866938206
B33: 0.18 | C33: 0.5291502622
B34: 0.19 | C34: 0.5717298313
B35: 0.2 | C35: 0.6144102864

Sheet Portfolio Frontier (三資產)
I1: E(r_i) = | J1: 0.1 | K1: 0.06 | L1: 0.2 | M1: (derived according to the annualized adjusted (total) returns in the historical data)
B2: coef. 1 | C2: coef.2 | D2: coef. 3 | E2: Result | I2: sigma(r_i) = | J2: 0.2 | K2: 0.1 | L2: 0.3
A3: Objectinve Function | E3: =(B7*B7*B9+C7*C7*C10+D7*D7*D11+2*B7*C7*C9+2*B7*D7*D9+2*C7*D7*D10)^0.5 -> 0.2953820038 | I3: correlation = | J3: 1 | K3: 0.5 | L3: 0.8
A4: C1 | B4: 0.1 | C4: 0.06 | D4: 0.2 | E4: =SUMPRODUCT(B4:D4,$B$7:$D$7) -> 0.1999999996 | F4: = | G4: 0.2 | K4: 1 | L4: 0.7
A5: C2 | B5: 1 | C5: 1 | D5: 1 | E5: =SUMPRODUCT(B5:D5,$B$7:$D$7) -> 1 | F5: = | G5: 1 | L5: 1
A7: Solution Value (weights) | B7: -0.3773783955 | C7: 0.2695559997 | D7: 1.107822396 | F7: ※ 使用 "資料" => "規劃求解"按鈕解此受限制portfolio standard deviation極小化問題
F8: ※ 如何叫出"規劃求解"按鈕："檔案" => "選項" => "增益集" => "Excel增益集" => 執行 => 選擇 "規劃求解增益集"
A9: variance-covariance | B9: =0.2^2 -> 0.04 | C9: =0.5*0.2*0.1 -> 0.01 | D9: =0.8*0.2*0.3 -> 0.048
B10: =C9 -> 0.01 | C10: =0.1^2 -> 0.01 | D10: =0.7*0.1*0.3 -> 0.021
B11: =D9 -> 0.048 | C11: =D10 -> 0.021 | D11: =0.3^2 -> 0.09
B15: E(r_p) | C15: sigma(r_p)
B16: 0 | C16: 0.09068100316
B17: 0.01 | C17: 0.08424998074
B18: 0.02 | C18: 0.08066853891
B19: 0.03 | C19: 0.08031880195
B20: 0.04 | C20: 0.08324166934
B21: 0.05 | C21: 0.08911568826
B22: 0.06 | C22: 0.09740831834
B23: 0.07 | C23: 0.1075616255
B24: 0.08 | C24: 0.1191007538
B25: 0.09 | C25: 0.1316618054
B26: 0.1 | C26: 0.1449794136
B27: 0.11 | C27: 0.1588633986
B28: 0.12 | C28: 0.1731776148
B29: 0.13 | C29: 0.1878237173
B30: 0.14 | C30: 0.202729786
B31: 0.15 | C31: 0.2178424628
B32: 0.16 | C32: 0.2331215699
B33: 0.17 | C33: 0.2485364142
B34: 0.18 | C34: 0.264063226
B35: 0.19 | C35: 0.2796833577
B36: 0.2 | C36: 0.2953820052

Sheet 歷史資料估計E(r), s.d., and correl.
A1: daily adjusted (total) return | B1: r1 | C1: r2 | D1: r3
B2: 0.001 | C2: -0.03 | D2: 0.003
B3: -0.03 | C3: 0.007 | D3: -0.035
B4: 0.04 | C4: 0.007 | D4: 0.015
B5: 0.015 | C5: 0.003 | D5: 0.006
B6: -0.04 | C6: 0.02 | D6: 0.001
A8: annual E(r_i) | B8: =AVERAGE(B2:B6)*250 -> -0.7 | C8: =AVERAGE(C2:C6)*250 -> 0.35 | D8: =AVERAGE(D2:D6)*250 -> -0.5
A9: annual sigma_i | B9: =STDEV(B2:B6)*SQRT(250) -> 0.5176147216 | C9: =STDEV(C2:C6)*SQRT(250) -> 0.2955080371 | D9: =STDEV(D2:D6)*SQRT(205) -> 0.2750363612
A10: correlation_ij | B10: =CORREL(B2:B6,B2:B6) -> 1 | C10: =CORREL(B2:B6,C2:C6) -> -0.2841441943 | D10: =CORREL(B2:B6,D2:D6) -> 0.6658938772
B11: =C10 -> -0.2841441943 | C11: =CORREL(C2:C6,C2:C6) -> 1 | D11: =CORREL(C2:C6,D2:D6) -> -0.1239502865
B12: =D10 -> 0.6658938772 | C12: =D11 -> -0.1239502865 | D12: =CORREL(D2:D6,D2:D6) -> 1
